[Event "*** SCC Grand Prix: Titled Tuesday Blitz"]
[Site "Chess.com"]
[Date "2020.07.14"]
[Round "8"]
[White "GaboSalazar2001"]
[Black "aripov96"]
[Result "0-1"]
[WhiteElo "2299"]
[BlackElo "2429"]
[TimeControl "180+1"]
[EndTime "11:34:50 PDT"]
[Termination "aripov96 won by resignation"]

1. e4 {[%clk 0:03:00.9]} 1... c5 {[%clk 0:02:59.8]} 2. Nf3 {[%clk 0:03:01.4]}
2... Nc6 {[%clk 0:02:58.7]} 3. d4 {[%clk 0:03:01.7]} 3... cxd4 {[%clk
0:02:59.6]} 4. Nxd4 {[%clk 0:03:02]} 4... g6 {[%clk 0:03:00.2]} 5. c4 {[%clk
0:03:02.2]} 5... Nf6 {[%clk 0:02:58.4]} 6. Be3 {[%clk 0:03:02.8]} 6... Nxe4
{[%clk 0:02:55.2]} 7. Bd3 {[%clk 0:02:53.6]} 7... Qa5+ {[%clk 0:02:44.2]} 8. Nd2
{[%clk 0:02:49.6]} 8... Nxd2 {[%clk 0:02:34.3]} 9. Bxd2 {[%clk 0:02:50.5]} 9...
Qb6 {[%clk 0:01:30.8]} 10. Nb3 {[%clk 0:02:50.3]} 10... Bg7 {[%clk 0:01:28.3]}
11. O-O {[%clk 0:02:50.5]} 11... O-O {[%clk 0:01:27.6]} 12. c5 {[%clk
0:02:45.4]} 12... Qd8 {[%clk 0:01:23.3]} 13. Qc2 {[%clk 0:02:42.1]} 13... a5
{[%clk 0:01:09]} 14. a4 {[%clk 0:02:37.5]} 14... d6 {[%clk 0:00:57.4]} 15. Rad1
{[%clk 0:02:35.2]} 15... Be6 {[%clk 0:00:45.8]} 16. Be3 {[%clk 0:02:24.1]} 16...
Nb4 {[%clk 0:00:37.7]} 17. Qe2 {[%clk 0:02:19.2]} 17... Bxb3 {[%clk 0:00:36.4]}
18. Rc1 {[%clk 0:02:18.9]} 18... Nxd3 {[%clk 0:00:31.4]} 19. Qxd3 {[%clk
0:02:19.8]} 19... Bxa4 {[%clk 0:00:29.6]} 20. b3 {[%clk 0:02:17.2]} 20... Bc6
{[%clk 0:00:28.9]} 21. Rfd1 {[%clk 0:02:15.9]} 21... dxc5 {[%clk 0:00:28.2]} 22.
Qc4 {[%clk 0:02:11.7]} 22... Qc8 {[%clk 0:00:24.3]} 23. Qxc5 {[%clk 0:02:10.3]}
23... Qg4 {[%clk 0:00:22.8]} 24. g3 {[%clk 0:02:01.8]} 24... Qf3 {[%clk
0:00:22.2]} 25. Kf1 {[%clk 0:02:02]} 25... Qg2+ {[%clk 0:00:20.7]} 26. Ke2
{[%clk 0:02:01.9]} 26... Bf3+ {[%clk 0:00:20]} 27. Ke1 {[%clk 0:02:02.5]} 27...
Bxd1 {[%clk 0:00:20]} 28. Rxd1 {[%clk 0:02:02.6]} 28... Rac8 {[%clk 0:00:19.2]}
29. Qxe7 {[%clk 0:01:58.9]} 29... Rc2 {[%clk 0:00:18.2]} 30. Bd2 {[%clk
0:01:47.7]} 30... Qf3 {[%clk 0:00:13.6]} 31. Qe3 {[%clk 0:01:40.7]} 31... Qxe3+
{[%clk 0:00:13.1]} 32. Bxe3 {[%clk 0:01:41.5]} 32... Bc3+ {[%clk 0:00:12.6]} 33.
Kf1 {[%clk 0:01:41.5]} 33... Rb2 {[%clk 0:00:13]} 34. Bc5 {[%clk 0:01:41.7]}
34... Rxb3 {[%clk 0:00:12.5]} 35. Rd3 {[%clk 0:01:40.3]} 35... Rc8 {[%clk
0:00:11.5]} 36. Bb6 {[%clk 0:01:40.1]} 36... a4 {[%clk 0:00:11.3]} 37. Kg2
{[%clk 0:01:40.9]} 37... Rxb6 {[%clk 0:00:11.3]} 0-1

[Event "*** SCC Grand Prix: Titled Tuesday Blitz"]
[Site "Chess.com"]
[Date "2020.07.14"]
[Round "8"]
[White "XxPetroffsxX"]
[Black "Shushik"]
[Result "1-0"]
[WhiteElo "1973"]
[BlackElo "2204"]
[TimeControl "180+1"]
[EndTime "11:34:50 PDT"]
[Termination "XxPetroffsxX won by resignation"]

1. e4 {[%clk 0:03:00]} 1... e5 {[%clk 0:02:59.8]} 2. Nf3 {[%clk 0:02:59.5]} 2...
Nc6 {[%clk 0:03:00]} 3. Bb5 {[%clk 0:02:59.8]} 3... Nf6 {[%clk 0:02:59.5]} 4.
Qe2 {[%clk 0:02:58.7]} 4... d6 {[%clk 0:02:55.7]} 5. c3 {[%clk 0:02:57.1]} 5...
a6 {[%clk 0:02:53.1]} 6. Ba4 {[%clk 0:02:56.1]} 6... g6 {[%clk 0:02:50.8]} 7. d4
{[%clk 0:02:53.7]} 7... b5 {[%clk 0:02:50.1]} 8. Bb3 {[%clk 0:02:51.5]} 8... Bg7
{[%clk 0:02:48.4]} 9. dxe5 {[%clk 0:02:46.1]} 9... dxe5 {[%clk 0:02:47.2]} 10.
O-O {[%clk 0:02:46]} 10... O-O {[%clk 0:02:46]} 11. Rd1 {[%clk 0:02:42.2]} 11...
Qe7 {[%clk 0:02:44.7]} 12. a4 {[%clk 0:02:39.1]} 12... Bg4 {[%clk 0:02:22.5]}
13. Nbd2 {[%clk 0:02:35.7]} 13... Na5 {[%clk 0:02:10.4]} 14. Bc2 {[%clk
0:02:30.3]} 14... b4 {[%clk 0:01:54.5]} 15. h3 {[%clk 0:02:25.2]} 15... Bxf3
{[%clk 0:01:47]} 16. Nxf3 {[%clk 0:02:21.9]} 16... bxc3 {[%clk 0:01:46.6]} 17.
bxc3 {[%clk 0:02:21.4]} 17... Rfd8 {[%clk 0:01:45]} 18. Ba3 {[%clk 0:02:15.2]}
18... Qe6 {[%clk 0:01:40.7]} 19. Bb4 {[%clk 0:02:06.1]} 19... Nc6 {[%clk
0:01:36.4]} 20. Ng5 {[%clk 0:01:59]} 20... Qe8 {[%clk 0:01:28]} 21. Bb3 {[%clk
0:01:58.1]} 21... Rxd1+ {[%clk 0:01:23.6]} 22. Rxd1 {[%clk 0:01:56.4]} 22... Nd8
{[%clk 0:01:21.7]} 23. Qc4 {[%clk 0:01:43.5]} 23... Bh6 {[%clk 0:01:20.2]} 24.
Rxd8 {[%clk 0:01:29.8]} 24... Rxd8 {[%clk 0:01:13.3]} 25. Nxf7 {[%clk 0:01:28]}
25... Kg7 {[%clk 0:00:37.6]} 26. Nxd8 {[%clk 0:01:23.7]} 26... Qxd8 {[%clk
0:00:37.4]} 27. Qf7+ {[%clk 0:01:18.8]} 27... Kh8 {[%clk 0:00:37.2]} 28. Be7
{[%clk 0:01:16.3]} 1-0

[Event "*** SCC Grand Prix: Titled Tuesday Blitz"]
[Site "Chess.com"]
[Date "2020.07.14"]
[Round "8"]
[White "Kotofeyca"]
[Black "harkerchess"]
[Result "1-0"]
[WhiteElo "2315"]
[BlackElo "2098"]
[TimeControl "180+1"]
[EndTime "11:34:51 PDT"]
[Termination "Kotofeyca won by checkmate"]

1. d4 {[%clk 0:03:00.9]} 1... d5 {[%clk 0:02:12.3]} 2. c4 {[%clk 0:02:58.9]}
2... c6 {[%clk 0:02:12.2]} 3. Nc3 {[%clk 0:02:52.9]} 3... Nf6 {[%clk 0:02:12.4]}
4. cxd5 {[%clk 0:02:52]} 4... cxd5 {[%clk 0:02:12.3]} 5. Bf4 {[%clk 0:02:52.1]}
5... e6 {[%clk 0:02:11.1]} 6. e3 {[%clk 0:02:52.6]} 6... a6 {[%clk 0:02:10.8]}
7. Nf3 {[%clk 0:02:51.4]} 7... Nc6 {[%clk 0:02:11.4]} 8. Bd3 {[%clk 0:02:51.2]}
8... Be7 {[%clk 0:02:12.1]} 9. Qe2 {[%clk 0:02:48.4]} 9... O-O {[%clk
0:02:12.6]} 10. h3 {[%clk 0:02:48.5]} 10... Bd7 {[%clk 0:02:12.3]} 11. O-O
{[%clk 0:02:47.8]} 11... Rc8 {[%clk 0:02:12.9]} 12. Rfc1 {[%clk 0:02:47.1]}
12... b5 {[%clk 0:02:13.4]} 13. a4 {[%clk 0:02:46.2]} 13... b4 {[%clk
0:02:12.6]} 14. Na2 {[%clk 0:02:45]} 14... a5 {[%clk 0:02:13.5]} 15. Ba6 {[%clk
0:02:43]} 15... Rb8 {[%clk 0:02:12.6]} 16. Bb5 {[%clk 0:02:39.6]} 16... Qb6
{[%clk 0:02:11.2]} 17. Bxb8 {[%clk 0:02:35.2]} 17... Rxb8 {[%clk 0:02:10.4]} 18.
b3 {[%clk 0:02:27.4]} 18... Rd8 {[%clk 0:02:07]} 19. Rc2 {[%clk 0:02:26.1]}
19... Nb8 {[%clk 0:02:06.8]} 20. Nc1 {[%clk 0:02:20.1]} 20... Bxb5 {[%clk
0:02:04]} 21. Qxb5 {[%clk 0:02:19.9]} 21... Qa7 {[%clk 0:02:03.4]} 22. Nd3
{[%clk 0:02:15.7]} 22... Nbd7 {[%clk 0:02:02.2]} 23. Nde5 {[%clk 0:02:07.8]}
23... Nb8 {[%clk 0:01:50.3]} 24. Rac1 {[%clk 0:02:05.5]} 24... Ne4 {[%clk
0:01:48.2]} 25. Rc7 {[%clk 0:01:54.2]} 25... Qa8 {[%clk 0:01:42.8]} 26. Rxe7
{[%clk 0:01:52.8]} 26... Na6 {[%clk 0:01:43.7]} 27. Qc6 {[%clk 0:01:22.9]} 27...
Nc3 {[%clk 0:01:36]} 28. Qxa8 {[%clk 0:01:16.5]} 28... Rxa8 {[%clk 0:01:36.9]}
29. Kf1 {[%clk 0:01:14.8]} 29... f6 {[%clk 0:01:34.2]} 30. Nc6 {[%clk
0:01:07.6]} 30... Rc8 {[%clk 0:01:30.3]} 31. Nxa5 {[%clk 0:01:05.8]} 31... e5
{[%clk 0:01:24.6]} 32. Ra7 {[%clk 0:01:03.9]} 32... e4 {[%clk 0:01:22.9]} 33.
Rxa6 {[%clk 0:01:00.5]} 33... exf3 {[%clk 0:01:23.8]} 34. gxf3 {[%clk
0:01:00.7]} 34... Rc6 {[%clk 0:01:21.1]} 35. Rxc6 {[%clk 0:01:00.2]} 35... Na2
{[%clk 0:01:19]} 36. R1c5 {[%clk 0:00:58.3]} 36... Nc1 {[%clk 0:01:19.9]} 37.
Rxc1 {[%clk 0:00:57.7]} 37... Kf7 {[%clk 0:01:20.3]} 38. Rd6 {[%clk 0:00:56.4]}
38... Kg6 {[%clk 0:01:21.2]} 39. Rc7 {[%clk 0:00:56.4]} 39... h5 {[%clk
0:01:22.1]} 40. Rdd7 {[%clk 0:00:56.6]} 40... Kh6 {[%clk 0:01:23]} 41. Rxg7
{[%clk 0:00:55.7]} 41... h4 {[%clk 0:01:22.1]} 42. Rg1 {[%clk 0:00:42.9]} 42...
f5 {[%clk 0:01:21.3]} 43. f4 {[%clk 0:00:40.4]} 43... Kh5 {[%clk 0:01:19.8]} 44.
Rh7# {[%clk 0:00:40.4]} 1-0

[Event "*** SCC Grand Prix: Titled Tuesday Blitz"]
[Site "Chess.com"]
[Date "2020.07.14"]
[Round "8"]
[White "allvim"]
[Black "ChelsieMonica"]
[Result "0-1"]
[WhiteElo "2243"]
[BlackElo "2412"]
[TimeControl "180+1"]
[EndTime "11:34:53 PDT"]
[Termination "ChelsieMonica won by checkmate"]

1. e4 {[%clk 0:03:00.5]} 1... e5 {[%clk 0:03:00.1]} 2. Nf3 {[%clk 0:03:00.6]}
2... Nc6 {[%clk 0:03:00.4]} 3. Bc4 {[%clk 0:03:01]} 3... Bc5 {[%clk 0:03:00.5]}
4. O-O {[%clk 0:03:01.3]} 4... Nf6 {[%clk 0:03:00.7]} 5. d4 {[%clk 0:03:01.9]}
5... Bxd4 {[%clk 0:03:00.8]} 6. Nxd4 {[%clk 0:03:01.9]} 6... Nxd4 {[%clk
0:03:01.7]} 7. Bg5 {[%clk 0:03:02.3]} 7... h6 {[%clk 0:03:02.2]} 8. Bh4 {[%clk
0:03:02.4]} 8... d6 {[%clk 0:03:02.8]} 9. f4 {[%clk 0:02:59.6]} 9... Qe7 {[%clk
0:02:57.6]} 10. Na3 {[%clk 0:02:59.1]} 10... c6 {[%clk 0:02:56.9]} 11. c3 {[%clk
0:02:45.9]} 11... Ne6 {[%clk 0:02:36.6]} 12. fxe5 {[%clk 0:02:11.6]} 12... dxe5
{[%clk 0:02:37.5]} 13. Bxf6 {[%clk 0:02:09.3]} 13... gxf6 {[%clk 0:02:36.6]} 14.
Bxe6 {[%clk 0:02:03.8]} 14... Bxe6 {[%clk 0:02:32.5]} 15. Qf3 {[%clk 0:02:03.8]}
15... O-O-O {[%clk 0:02:31.6]} 16. Qxf6 {[%clk 0:02:01.9]} 16... Qc5+ {[%clk
0:02:31.7]} 17. Qf2 {[%clk 0:02:01.6]} 17... Qa5 {[%clk 0:02:18.2]} 18. Kh1
{[%clk 0:01:40.3]} 18... Rhg8 {[%clk 0:02:18]} 19. Rad1 {[%clk 0:01:37.8]} 19...
Qa4 {[%clk 0:01:59.5]} 20. Rde1 {[%clk 0:00:50.8]} 20... Rg4 {[%clk 0:01:48.8]}
21. Nc2 {[%clk 0:00:23.4]} 21... Rf4 {[%clk 0:01:37.6]} 22. Qe2 {[%clk
0:00:22.9]} 22... Bc4 {[%clk 0:01:35.3]} 23. Qh5 {[%clk 0:00:02.2]} 23... Bxf1
{[%clk 0:01:14]} 24. Rxf1 {[%clk 0:00:02]} 24... Rxf1# {[%clk 0:01:13.3]} 0-1

[Event "*** SCC Grand Prix: Titled Tuesday Blitz"]
[Site "Chess.com"]
[Date "2020.07.14"]
[Round "8"]
[White "SilviusTiberius"]
[Black "jonychess03"]
[Result "1-0"]
[WhiteElo "2485"]
[BlackElo "2310"]
[TimeControl "180+1"]
[EndTime "11:34:56 PDT"]
[Termination "SilviusTiberius won on time"]

1. e4 {[%clk 0:03:00.9]} 1... e6 {[%clk 0:02:57.3]} 2. d4 {[%clk 0:02:59.6]}
2... d5 {[%clk 0:02:57.9]} 3. Nc3 {[%clk 0:02:59.6]} 3... Bb4 {[%clk 0:02:56.7]}
4. exd5 {[%clk 0:02:59.8]} 4... exd5 {[%clk 0:02:56.1]} 5. Bd3 {[%clk
0:03:00.1]} 5... Ne7 {[%clk 0:02:55.6]} 6. Nf3 {[%clk 0:02:58.7]} 6... h6 {[%clk
0:02:51]} 7. O-O {[%clk 0:02:57.2]} 7... O-O {[%clk 0:02:50.8]} 8. Ne2 {[%clk
0:02:56.3]} 8... Bd6 {[%clk 0:02:50.1]} 9. Ng3 {[%clk 0:02:55.5]} 9... Bg4
{[%clk 0:02:48.1]} 10. h3 {[%clk 0:02:52.3]} 10... Bxg3 {[%clk 0:02:44.5]} 11.
hxg4 {[%clk 0:02:48.6]} 11... Bd6 {[%clk 0:02:42.8]} 12. g5 {[%clk 0:02:49.1]}
12... h5 {[%clk 0:02:28.3]} 13. Ne5 {[%clk 0:02:38.9]} 13... g6 {[%clk
0:02:26.2]} 14. f4 {[%clk 0:02:35.3]} 14... Nd7 {[%clk 0:02:25]} 15. c3 {[%clk
0:02:32.6]} 15... c5 {[%clk 0:02:19.5]} 16. Be3 {[%clk 0:02:27.2]} 16... cxd4
{[%clk 0:02:13.6]} 17. cxd4 {[%clk 0:02:23.7]} 17... Re8 {[%clk 0:02:08.2]} 18.
g4 {[%clk 0:02:19.5]} 18... hxg4 {[%clk 0:01:54.3]} 19. Qxg4 {[%clk 0:02:18.1]}
19... Nxe5 {[%clk 0:01:43.5]} 20. fxe5 {[%clk 0:02:17.8]} 20... Bc7 {[%clk
0:01:36.5]} 21. e6 {[%clk 0:02:10.8]} 21... Rf8 {[%clk 0:01:25.5]} 22. exf7+
{[%clk 0:02:07]} 22... Rxf7 {[%clk 0:01:26.4]} 23. Rxf7 {[%clk 0:02:04.4]} 23...
Kxf7 {[%clk 0:01:26]} 24. Rf1+ {[%clk 0:02:04.7]} 24... Kg7 {[%clk 0:01:23.5]}
25. Qe6 {[%clk 0:02:03]} 25... Qe8 {[%clk 0:00:50.3]} 26. Qf6+ {[%clk
0:01:38.2]} 26... Kg8 {[%clk 0:00:46.7]} 27. Rf3 {[%clk 0:01:32.7]} 27... Nf5
{[%clk 0:00:26.1]} 28. Bxf5 {[%clk 0:01:27.1]} 28... gxf5 {[%clk 0:00:25.2]} 29.
Rh3 {[%clk 0:01:24.9]} 1-0

[Event "*** SCC Grand Prix: Titled Tuesday Blitz"]
[Site "Chess.com"]
[Date "2020.07.14"]
[Round "8"]
[White "MariaFominykh"]
[Black "grandcoach"]
[Result "0-1"]
[WhiteElo "2257"]
[BlackElo "2116"]
[TimeControl "180+1"]
[EndTime "11:34:57 PDT"]
[Termination "grandcoach won by resignation"]

1. Nf3 {[%clk 0:03:00.9]} 1... d5 {[%clk 0:02:57.9]} 2. g3 {[%clk 0:03:00.6]}
2... Nf6 {[%clk 0:02:57]} 3. Bg2 {[%clk 0:03:00.5]} 3... g6 {[%clk 0:02:55.2]}
4. O-O {[%clk 0:03:00.2]} 4... Bg7 {[%clk 0:02:55.7]} 5. d3 {[%clk 0:02:59.5]}
5... O-O {[%clk 0:02:55.2]} 6. Nbd2 {[%clk 0:02:59.3]} 6... b6 {[%clk
0:02:52.7]} 7. e4 {[%clk 0:02:47.3]} 7... dxe4 {[%clk 0:02:50.6]} 8. dxe4 {[%clk
0:02:31]} 8... Bb7 {[%clk 0:02:26.1]} 9. e5 {[%clk 0:01:58.3]} 9... Ng4 {[%clk
0:02:21.2]} 10. Re1 {[%clk 0:01:49.9]} 10... Nd7 {[%clk 0:02:16.2]} 11. e6
{[%clk 0:01:43.8]} 11... fxe6 {[%clk 0:02:15.2]} 12. Qe2 {[%clk 0:01:27.8]}
12... Nc5 {[%clk 0:02:01]} 13. Rb1 {[%clk 0:01:20.5]} 13... Kh8 {[%clk
0:01:48.1]} 14. b4 {[%clk 0:01:06.6]} 14... Na4 {[%clk 0:01:46.8]} 15. Qxe6
{[%clk 0:01:06.3]} 15... Nxf2 {[%clk 0:01:36.2]} 16. Kxf2 {[%clk 0:00:35.7]}
16... Nc3 {[%clk 0:01:35.8]} 17. Bb2 {[%clk 0:00:23.9]} 17... Qxd2+ {[%clk
0:01:31.9]} 18. Kg1 {[%clk 0:00:20.9]} 18... Bxf3 {[%clk 0:01:19.7]} 19. Bxf3
{[%clk 0:00:19.8]} 19... Rxf3 {[%clk 0:01:19.1]} 20. Rf1 {[%clk 0:00:19.2]}
20... Ne2+ {[%clk 0:01:10.2]} 21. Kh1 {[%clk 0:00:18.9]} 21... Rxf1+ {[%clk
0:01:09.1]} 22. Rxf1 {[%clk 0:00:18.6]} 22... Bxb2 {[%clk 0:01:09.4]} 23. Qe4
{[%clk 0:00:16.4]} 23... Rg8 {[%clk 0:01:05.1]} 24. Qxe7 {[%clk 0:00:13]} 24...
Qd5+ {[%clk 0:01:02.8]} 0-1

[Event "*** SCC Grand Prix: Titled Tuesday Blitz"]
[Site "Chess.com"]
[Date "2020.07.14"]
[Round "8"]
[White "CrushingKings"]
[Black "mjray79"]
[Result "1-0"]
[WhiteElo "2537"]
[BlackElo "2341"]
[TimeControl "180+1"]
[EndTime "11:35:08 PDT"]
[Termination "CrushingKings won by resignation"]

1. e4 {[%clk 0:03:00.9]} 1... e5 {[%clk 0:02:52]} 2. Nf3 {[%clk 0:03:00.2]} 2...
Nc6 {[%clk 0:02:51.6]} 3. Bc4 {[%clk 0:03:00]} 3... Bc5 {[%clk 0:02:50.8]} 4. c3
{[%clk 0:02:59.1]} 4... Nf6 {[%clk 0:02:50.7]} 5. d3 {[%clk 0:02:57.5]} 5... O-O
{[%clk 0:02:49.7]} 6. O-O {[%clk 0:02:57.3]} 6... d5 {[%clk 0:02:50.1]} 7. exd5
{[%clk 0:02:58.2]} 7... Nxd5 {[%clk 0:02:50.6]} 8. a4 {[%clk 0:02:58.3]} 8... a5
{[%clk 0:02:49.4]} 9. Nbd2 {[%clk 0:02:57.2]} 9... Nb6 {[%clk 0:02:48.9]} 10.
Bb5 {[%clk 0:02:56]} 10... Bd6 {[%clk 0:02:48.8]} 11. Re1 {[%clk 0:02:53.5]}
11... Bg4 {[%clk 0:02:47.8]} 12. h3 {[%clk 0:02:52.5]} 12... Bh5 {[%clk
0:02:46.6]} 13. Ne4 {[%clk 0:02:52.6]} 13... f5 {[%clk 0:02:46.2]} 14. Ng3
{[%clk 0:02:51.9]} 14... Bxf3 {[%clk 0:02:41.8]} 15. Qxf3 {[%clk 0:02:52.8]}
15... Qf6 {[%clk 0:02:34.3]} 16. Bxc6 {[%clk 0:02:34.7]} 16... bxc6 {[%clk
0:02:35.2]} 17. Qxc6 {[%clk 0:02:35.1]} 17... Rae8 {[%clk 0:02:28.7]} 18. b4
{[%clk 0:02:23.1]} 18... axb4 {[%clk 0:02:21.5]} 19. a5 {[%clk 0:02:23.2]} 19...
Nc8 {[%clk 0:02:16.2]} 20. cxb4 {[%clk 0:02:11.4]} 20... e4 {[%clk 0:02:15]} 21.
Bd2 {[%clk 0:01:41.4]} 21... Bxg3 {[%clk 0:02:00.8]} 22. Qc4+ {[%clk 0:01:36.9]}
22... Kh8 {[%clk 0:01:51.3]} 23. fxg3 {[%clk 0:01:36.9]} 23... Qg6 {[%clk
0:01:50.7]} 24. Bf4 {[%clk 0:01:28.1]} 24... Nd6 {[%clk 0:01:48.8]} 25. Qxc7
{[%clk 0:01:24.8]} 25... Nb5 {[%clk 0:01:42.1]} 26. Qc5 {[%clk 0:01:24.5]} 26...
exd3 {[%clk 0:01:31.9]} 27. Qxb5 {[%clk 0:01:18.8]} 27... h6 {[%clk 0:01:24.3]}
28. Qxd3 {[%clk 0:01:14.2]} 28... Rd8 {[%clk 0:01:23.7]} 29. Qf3 {[%clk
0:01:12.5]} 29... Qf6 {[%clk 0:01:19.8]} 30. a6 {[%clk 0:01:11.1]} 30... Qb6+
{[%clk 0:01:18.5]} 31. Kh2 {[%clk 0:01:10.1]} 31... Qxb4 {[%clk 0:01:17.4]} 32.
a7 {[%clk 0:01:09.9]} 32... Ra8 {[%clk 0:01:06.8]} 33. Reb1 {[%clk 0:01:09.1]}
33... Qc5 {[%clk 0:01:05.9]} 34. Rb8 {[%clk 0:01:02.5]} 34... Rxa7 {[%clk
0:00:55.9]} 35. Rxf8+ {[%clk 0:00:58.9]} 35... Qxf8 {[%clk 0:00:56.3]} 36. Rxa7
{[%clk 0:00:59.4]} 36... Qc5 {[%clk 0:00:54.9]} 37. Qe3 {[%clk 0:00:55.6]} 37...
Qc4 {[%clk 0:00:54.4]} 38. Qe7 {[%clk 0:00:53.5]} 38... Qd4 {[%clk 0:00:53.6]}
39. Be5 {[%clk 0:00:51.1]} 1-0

[Event "*** SCC Grand Prix: Titled Tuesday Blitz"]
[Site "Chess.com"]
[Date "2020.07.14"]
[Round "8"]
[White "Angry_Twin"]
[Black "ChessicallyInclined"]
[Result "0-1"]
[WhiteElo "2741"]
[BlackElo "2516"]
[TimeControl "180+1"]
[EndTime "11:35:11 PDT"]
[Termination "ChessicallyInclined won by checkmate"]

1. d4 {[%clk 0:03:00.9]} 1... Nf6 {[%clk 0:02:43.3]} 2. Bf4 {[%clk 0:02:59.7]}
2... b6 {[%clk 0:02:41.9]} 3. c3 {[%clk 0:02:58.4]} 3... Bb7 {[%clk 0:02:42.1]}
4. e3 {[%clk 0:02:58.9]} 4... e6 {[%clk 0:02:42.3]} 5. Nf3 {[%clk 0:02:59.4]}
5... c5 {[%clk 0:02:42.1]} 6. Be2 {[%clk 0:02:59.5]} 6... Nc6 {[%clk 0:02:41.6]}
7. O-O {[%clk 0:02:59.4]} 7... Be7 {[%clk 0:02:42.2]} 8. h3 {[%clk 0:02:59.2]}
8... O-O {[%clk 0:02:42.6]} 9. Nbd2 {[%clk 0:02:59.8]} 9... d5 {[%clk
0:02:42.8]} 10. Re1 {[%clk 0:02:57.9]} 10... Bd6 {[%clk 0:02:39.8]} 11. Bxd6
{[%clk 0:02:57.1]} 11... Qxd6 {[%clk 0:02:40.7]} 12. Bd3 {[%clk 0:02:56.2]}
12... e5 {[%clk 0:02:38.2]} 13. dxc5 {[%clk 0:02:56.5]} 13... Qxc5 {[%clk
0:02:35.3]} 14. e4 {[%clk 0:02:56.5]} 14... dxe4 {[%clk 0:02:35.6]} 15. Nxe4
{[%clk 0:02:56.5]} 15... Nxe4 {[%clk 0:02:35.5]} 16. Bxe4 {[%clk 0:02:57.4]}
16... Rad8 {[%clk 0:02:34.2]} 17. Qc2 {[%clk 0:02:52.6]} 17... h6 {[%clk
0:02:07.1]} 18. Bxc6 {[%clk 0:02:52]} 18... Bxc6 {[%clk 0:02:08]} 19. Nxe5
{[%clk 0:02:51.3]} 19... Bb7 {[%clk 0:02:03.7]} 20. Rad1 {[%clk 0:02:50.4]}
20... Rxd1 {[%clk 0:02:01.3]} 21. Qxd1 {[%clk 0:02:51.3]} 21... Re8 {[%clk
0:01:56.4]} 22. Nd3 {[%clk 0:02:42.1]} 22... Rxe1+ {[%clk 0:01:52]} 23. Nxe1
{[%clk 0:02:43]} 23... Qe5 {[%clk 0:01:29.5]} 24. Nc2 {[%clk 0:02:40.3]} 24...
Bd5 {[%clk 0:01:15.3]} 25. a3 {[%clk 0:02:39.3]} 25... Bb3 {[%clk 0:01:04.3]}
26. Qd8+ {[%clk 0:02:40.2]} 26... Kh7 {[%clk 0:01:03.9]} 27. Ne3 {[%clk
0:02:41.1]} 27... Qe4 {[%clk 0:00:59.4]} 28. Qd2 {[%clk 0:02:40.1]} 28... f5
{[%clk 0:00:57.3]} 29. f3 {[%clk 0:02:37.9]} 29... Qb1+ {[%clk 0:00:54.4]} 30.
Kh2 {[%clk 0:02:36.8]} 30... f4 {[%clk 0:00:52.6]} 31. Ng4 {[%clk 0:02:36.8]}
31... Qf5 {[%clk 0:00:50.7]} 32. Qd4 {[%clk 0:02:36]} 32... h5 {[%clk
0:00:48.3]} 33. Nf2 {[%clk 0:02:36.2]} 33... Bc2 {[%clk 0:00:44.2]} 34. Ne4
{[%clk 0:02:33.4]} 34... Qg6 {[%clk 0:00:39.6]} 35. Kg1 {[%clk 0:02:29.1]} 35...
Kh6 {[%clk 0:00:26.4]} 36. Nd6 {[%clk 0:02:24.6]} 36... Qg3 {[%clk 0:00:18.8]}
37. Qd2 {[%clk 0:02:16.3]} 37... Bg6 {[%clk 0:00:17.4]} 38. Nc4 {[%clk
0:02:15.3]} 38... Bf5 {[%clk 0:00:15.1]} 39. Qf2 {[%clk 0:02:13]} 39... Qg5
{[%clk 0:00:13.4]} 40. Ne5 {[%clk 0:02:12.1]} 40... Qf6 {[%clk 0:00:11.6]} 41.
Qd4 {[%clk 0:02:11.8]} 41... Kh7 {[%clk 0:00:12]} 42. Qxf4 {[%clk 0:02:11.6]}
42... g5 {[%clk 0:00:11.5]} 43. Qd4 {[%clk 0:02:11.6]} 43... Qe6 {[%clk
0:00:11.6]} 44. g4 {[%clk 0:02:11.9]} 44... hxg4 {[%clk 0:00:11.7]} 45. hxg4
{[%clk 0:02:12.8]} 45... Bb1 {[%clk 0:00:12.1]} 46. Kf2 {[%clk 0:02:12.9]} 46...
Qf6 {[%clk 0:00:12.2]} 47. Qe3 {[%clk 0:02:13.1]} 47... Qh6 {[%clk 0:00:12]} 48.
Ke1 {[%clk 0:02:07.4]} 48... Qh1+ {[%clk 0:00:11.5]} 49. Kd2 {[%clk 0:02:06.7]}
49... Qh2+ {[%clk 0:00:10.8]} 50. Qe2 {[%clk 0:02:06.6]} 50... Qf4+ {[%clk
0:00:11]} 51. Kd1 {[%clk 0:02:05.8]} 51... Ba2 {[%clk 0:00:10]} 52. Nd3 {[%clk
0:02:05.8]} 52... Bb3+ {[%clk 0:00:10.1]} 53. Ke1 {[%clk 0:02:06.1]} 53... Qg3+
{[%clk 0:00:10.1]} 54. Qf2 {[%clk 0:02:06.5]} 54... Qh3 {[%clk 0:00:10.5]} 55.
Qe3 {[%clk 0:02:02.9]} 55... Qh1+ {[%clk 0:00:10.2]} 56. Kd2 {[%clk 0:02:02.8]}
56... Qd1# {[%clk 0:00:10.3]} 0-1

[Event "*** SCC Grand Prix: Titled Tuesday Blitz"]
[Site "Chess.com"]
[Date "2020.07.14"]
[Round "8"]
[White "jannat65"]
[Black "Alexandercs432"]
[Result "0-1"]
[WhiteElo "1809"]
[BlackElo "2089"]
[TimeControl "180+1"]
[EndTime "11:35:11 PDT"]
[Termination "Alexandercs432 won by resignation"]

1. e4 {[%clk 0:03:00.9]} 1... c5 {[%clk 0:02:58.1]} 2. Nf3 {[%clk 0:02:59.3]}
2... e6 {[%clk 0:02:58.5]} 3. d4 {[%clk 0:02:58.8]} 3... cxd4 {[%clk 0:02:59.4]}
4. Nxd4 {[%clk 0:02:59.2]} 4... Nc6 {[%clk 0:03:00]} 5. Nc3 {[%clk 0:02:58.9]}
5... Qc7 {[%clk 0:02:58.9]} 6. Be3 {[%clk 0:02:56.6]} 6... a6 {[%clk 0:02:58.5]}
7. a3 {[%clk 0:02:55.8]} 7... Nf6 {[%clk 0:02:58.3]} 8. Bd3 {[%clk 0:02:45]}
8... b5 {[%clk 0:02:57.7]} 9. O-O {[%clk 0:02:43.9]} 9... Bb7 {[%clk 0:02:57.6]}
10. Kh1 {[%clk 0:02:41.5]} 10... h5 {[%clk 0:02:50.9]} 11. f4 {[%clk 0:02:39.7]}
11... Ng4 {[%clk 0:02:50.6]} 12. Bg1 {[%clk 0:02:35.4]} 12... g5 {[%clk
0:02:17.1]} 13. fxg5 {[%clk 0:01:40.5]} 13... Nxd4 {[%clk 0:02:14.6]} 14. Be2
{[%clk 0:01:16]} 14... Bc5 {[%clk 0:02:00.6]} 15. Bxg4 {[%clk 0:01:05.8]} 15...
hxg4 {[%clk 0:01:59.3]} 16. Qxg4 {[%clk 0:01:06.3]} 16... O-O-O {[%clk
0:01:51.1]} 17. Rac1 {[%clk 0:00:58.5]} 17... Rh7 {[%clk 0:01:44]} 18. h3 {[%clk
0:00:57.9]} 18... Rdh8 {[%clk 0:01:41.2]} 19. Bh2 {[%clk 0:00:57.8]} 19... Bd6
{[%clk 0:01:18.4]} 20. Bxd6 {[%clk 0:00:44.7]} 20... Qxd6 {[%clk 0:01:19.3]} 21.
Rcd1 {[%clk 0:00:42.9]} 21... e5 {[%clk 0:01:18]} 22. Ne2 {[%clk 0:00:34.1]}
22... Rh4 {[%clk 0:01:15.6]} 23. Rxd4 {[%clk 0:00:15.9]} 23... exd4 {[%clk
0:01:01.7]} 24. Qf3 {[%clk 0:00:15.5]} 24... Bxe4 {[%clk 0:00:57.3]} 25. Qf2
{[%clk 0:00:12.8]} 25... Rxh3+ {[%clk 0:00:56.4]} 0-1